[Event "Live Chess"]
[Site "Chess.com"]
[Date "2024.06.02"]
[Round "-"]
[White "matt1979"]
[Black "TheSmoulderingMaster"]
[Result "1-0"]
[WhiteElo "1439"]
[BlackElo "1762"]
[TimeControl "300"]
[EndTime "7:04:28 PDT"]
[Termination "matt1979 won by resignation"]

1. f4 {[%clk 0:04:58.4]} 1... e5 {[%clk 0:04:58.5]} 2. fxe5 {[%clk 0:04:55.1]}
2... d6 {[%clk 0:04:57.7]} 3. Nf3 {[%clk 0:04:53]} 3... h5 {[%clk 0:04:55.7]} 4.
d4 {[%clk 0:04:47.6]} 4... h4 {[%clk 0:04:54.8]} 5. e4 {[%clk 0:04:37.7]} 5...
Bg4 {[%clk 0:04:51.7]} 6. h3 {[%clk 0:04:33.4]} 6... Bh5 {[%clk 0:04:46.6]} 7.
Bg5 {[%clk 0:04:26.6]} 7... Be7 {[%clk 0:04:43.1]} 8. Bxe7 {[%clk 0:04:25.4]}
8... Qxe7 {[%clk 0:04:41.9]} 9. Be2 {[%clk 0:04:21.4]} 9... Nc6 {[%clk 0:04:40]}
10. c3 {[%clk 0:04:18.5]} 10... O-O-O {[%clk 0:04:38.1]} 11. Qb3 {[%clk
0:04:06.7]} 11... dxe5 {[%clk 0:04:28.5]} 12. d5 {[%clk 0:03:59.7]} 12... Na5
{[%clk 0:04:22.8]} 13. Qa4 {[%clk 0:03:57.7]} 13... b6 {[%clk 0:04:20.1]} 14. b4
{[%clk 0:03:55.6]} 14... Nb7 {[%clk 0:04:16.6]} 15. Qxa7 {[%clk 0:03:53.5]}
15... c5 {[%clk 0:04:03.7]} 16. Qxb6 {[%clk 0:03:37.3]} 16... cxb4 {[%clk
0:04:00.1]} 17. Ba6 {[%clk 0:03:16.8]} 17... Rh6 {[%clk 0:03:54]} 18. Qa7 {[%clk
0:03:13.8]} 18... Qc7 {[%clk 0:03:38.4]} 19. Bxb7+ {[%clk 0:03:03.5]} 19... Qxb7
{[%clk 0:03:37]} 20. Qxb7+ {[%clk 0:03:02.2]} 20... Kxb7 {[%clk 0:03:35.9]} 21.
cxb4 {[%clk 0:02:58.2]} 21... Nf6 {[%clk 0:03:31.5]} 22. Nbd2 {[%clk 0:02:55]}
22... Rc8 {[%clk 0:03:27.9]} 23. O-O {[%clk 0:02:50.1]} 23... Rc2 {[%clk
0:03:25.9]} 24. Rfc1 {[%clk 0:02:44.4]} 24... Rxc1+ {[%clk 0:03:21.8]} 25. Rxc1
{[%clk 0:02:43.1]} 25... Nd7 {[%clk 0:03:20.1]} 26. a4 {[%clk 0:02:34.4]} 26...
Ra6 {[%clk 0:03:14.7]} 27. a5 {[%clk 0:02:32.8]} 27... Bg6 {[%clk 0:03:09.7]}
28. Nxh4 {[%clk 0:02:28]} 28... Bh5 {[%clk 0:03:06.2]} 29. Nf5 {[%clk
0:02:23.3]} 29... Be2 {[%clk 0:02:59.7]} 30. Nxg7 {[%clk 0:02:19.6]} 30... Rg6
{[%clk 0:02:52.6]} 31. Nf5 {[%clk 0:02:17.5]} 31... Nf6 {[%clk 0:02:48.9]} 32.
d6 {[%clk 0:02:13.5]} 32... Nd7 {[%clk 0:02:40.5]} 33. Rc7+ {[%clk 0:02:11.7]}
1-0

[Event "Live Chess"]
[Site "Chess.com"]
[Date "2024.06.02"]
[Round "-"]
[White "juniortay"]
[Black "PureDashingOctopus"]
[Result "0-1"]
[WhiteElo "2310"]
[BlackElo "2285"]
[TimeControl "300"]
[EndTime "7:04:48 PDT"]
[Termination "PureDashingOctopus won by resignation"]

1. e4 {[%clk 0:04:57.7]} 1... c5 {[%clk 0:04:59.1]} 2. Nf3 {[%clk 0:04:56.5]}
2... d6 {[%clk 0:04:58.4]} 3. d4 {[%clk 0:04:55.7]} 3... cxd4 {[%clk 0:04:58.3]}
4. Qxd4 {[%clk 0:04:54.6]} 4... Nc6 {[%clk 0:04:56.7]} 5. Bb5 {[%clk 0:04:52.8]}
5... Bd7 {[%clk 0:04:55.9]} 6. Bxc6 {[%clk 0:04:51.9]} 6... Bxc6 {[%clk
0:04:55.8]} 7. Nc3 {[%clk 0:04:50.8]} 7... e5 {[%clk 0:04:54.6]} 8. Qd3 {[%clk
0:04:49.5]} 8... h6 {[%clk 0:04:50.3]} 9. Be3 {[%clk 0:04:47.6]} 9... Nf6 {[%clk
0:04:49]} 10. O-O-O {[%clk 0:04:46.2]} 10... Be7 {[%clk 0:04:47.8]} 11. Nd2
{[%clk 0:04:45.3]} 11... O-O {[%clk 0:04:44.2]} 12. Nc4 {[%clk 0:04:43.6]} 12...
Qc7 {[%clk 0:04:16.3]} 13. f3 {[%clk 0:04:17]} 13... Rfd8 {[%clk 0:04:11.5]} 14.
Nd5 {[%clk 0:04:14.4]} 14... Nxd5 {[%clk 0:04:04.6]} 15. exd5 {[%clk 0:04:11.2]}
15... Bb5 {[%clk 0:04:04]} 16. b3 {[%clk 0:04:10.2]} 16... Rac8 {[%clk
0:04:02.7]} 17. Qe4 {[%clk 0:04:05.6]} 17... Bxc4 {[%clk 0:03:57.6]} 18. bxc4
{[%clk 0:04:04.3]} 18... Qxc4 {[%clk 0:03:57.2]} 19. Qxc4 {[%clk 0:04:02.4]}
19... Rxc4 {[%clk 0:03:57.1]} 20. Bxa7 {[%clk 0:04:00.9]} 20... Ra8 {[%clk
0:03:54.4]} 21. Be3 {[%clk 0:03:59.1]} 21... Rxa2 {[%clk 0:03:53.3]} 22. Kd2
{[%clk 0:03:58.1]} 22... Rcxc2+ {[%clk 0:03:51.7]} 0-1

[Event "Live Chess"]
[Site "Chess.com"]
[Date "2024.06.02"]
[Round "-"]
[White "Purple1szed"]
[Black "CarmelJane"]
[Result "0-1"]
[WhiteElo "2013"]
[BlackElo "2010"]
[TimeControl "300"]
[EndTime "7:04:52 PDT"]
[Termination "CarmelJane won by resignation"]

1. e4 {[%clk 0:04:57.5]} 1... g6 {[%clk 0:04:58.6]} 2. d4 {[%clk 0:04:56.8]}
2... Bg7 {[%clk 0:04:58.5]} 3. Nf3 {[%clk 0:04:56.7]} 3... c5 {[%clk 0:04:57.9]}
4. Nc3 {[%clk 0:04:56.4]} 4... cxd4 {[%clk 0:04:57]} 5. Nxd4 {[%clk 0:04:56.3]}
5... Nc6 {[%clk 0:04:56.5]} 6. Be3 {[%clk 0:04:56]} 6... Nf6 {[%clk 0:04:54.8]}
7. Nb3 {[%clk 0:04:54.9]} 7... d6 {[%clk 0:04:52.9]} 8. f3 {[%clk 0:04:54]} 8...
O-O {[%clk 0:04:52.2]} 9. Qd2 {[%clk 0:04:53.6]} 9... a6 {[%clk 0:04:45.8]} 10.
O-O-O {[%clk 0:04:53]} 10... Be6 {[%clk 0:04:44.9]} 11. g4 {[%clk 0:04:51.3]}
11... Rc8 {[%clk 0:04:36.5]} 12. h4 {[%clk 0:04:49.3]} 12... Nb4 {[%clk
0:04:32.8]} 13. Bh6 {[%clk 0:04:45.6]} 13... Bxb3 {[%clk 0:04:19.7]} 14. cxb3
{[%clk 0:04:30.8]} 14... Nxa2+ {[%clk 0:04:14.8]} 15. Kb1 {[%clk 0:04:29.9]}
15... Nxc3+ {[%clk 0:04:13.8]} 16. bxc3 {[%clk 0:04:28.1]} 16... Bxh6 {[%clk
0:04:08.7]} 17. Qxh6 {[%clk 0:04:28]} 17... Rxc3 {[%clk 0:04:07.5]} 18. Kb2
{[%clk 0:04:24.6]} 18... Qa5 {[%clk 0:04:03.4]} 19. h5 {[%clk 0:04:22.2]} 19...
Rfc8 {[%clk 0:03:56.9]} 20. Bd3 {[%clk 0:04:18.7]} 20... Qb4 {[%clk 0:03:42.8]}
0-1

[Event "Live Chess"]
[Site "Chess.com"]
[Date "2024.06.02"]
[Round "-"]
[White "Anareza_Firouzja"]
[Black "WorcesterYork"]
[Result "0-1"]
[WhiteElo "1880"]
[BlackElo "2450"]
[TimeControl "300"]
[EndTime "7:04:58 PDT"]
[Termination "WorcesterYork won by resignation"]

1. e4 {[%clk 0:04:55.2]} 1... c5 {[%clk 0:04:59.4]} 2. Nf3 {[%clk 0:04:53.6]}
2... Nc6 {[%clk 0:04:58.9]} 3. Bb5 {[%clk 0:04:51.9]} 3... d6 {[%clk 0:04:57.8]}
4. O-O {[%clk 0:04:49]} 4... Bd7 {[%clk 0:04:56.8]} 5. Re1 {[%clk 0:04:46.5]}
5... Nf6 {[%clk 0:04:56.4]} 6. d3 {[%clk 0:04:43.9]} 6... a6 {[%clk 0:04:55.8]}
7. Bxc6 {[%clk 0:04:40.9]} 7... Bxc6 {[%clk 0:04:55.7]} 8. Nc3 {[%clk
0:04:39.6]} 8... e5 {[%clk 0:04:54.6]} 9. h3 {[%clk 0:04:38]} 9... Be7 {[%clk
0:04:54]} 10. Ne2 {[%clk 0:04:35]} 10... h6 {[%clk 0:04:53.3]} 11. Ng3 {[%clk
0:04:34.1]} 11... g6 {[%clk 0:04:52.8]} 12. c3 {[%clk 0:04:28.4]} 12... h5
{[%clk 0:04:50.6]} 13. d4 {[%clk 0:04:23.8]} 13... b5 {[%clk 0:04:47.7]} 14.
dxe5 {[%clk 0:04:20.2]} 14... dxe5 {[%clk 0:04:46.9]} 15. Qxd8+ {[%clk
0:04:15.4]} 15... Rxd8 {[%clk 0:04:46.8]} 16. Nxe5 {[%clk 0:04:14.2]} 16... Bb7
{[%clk 0:04:46.5]} 17. h4 {[%clk 0:03:48]} 17... Ng4 {[%clk 0:04:37.3]} 18. Nxg4
{[%clk 0:03:42.4]} 18... hxg4 {[%clk 0:04:37.2]} 19. Bg5 {[%clk 0:03:37.5]}
19... f6 {[%clk 0:04:36]} 20. Bf4 {[%clk 0:03:30.9]} 20... Rxh4 {[%clk
0:04:34.9]} 21. e5 {[%clk 0:03:28.2]} 21... f5 {[%clk 0:04:34.1]} 22. Rad1
{[%clk 0:03:13]} 22... Rxd1 {[%clk 0:04:31.4]} 23. Rxd1 {[%clk 0:03:11.5]} 23...
Rh7 {[%clk 0:04:22.1]} 24. e6 {[%clk 0:03:03.8]} 24... Bc8 {[%clk 0:04:20.5]}
25. Bd6 {[%clk 0:02:59.5]} 25... Bxe6 {[%clk 0:04:13.8]} 26. Re1 {[%clk
0:02:47.2]} 26... Kd7 {[%clk 0:04:12.4]} 27. Bxe7 {[%clk 0:02:45.2]} 27... Rxe7
{[%clk 0:04:11.5]} 28. Rd1+ {[%clk 0:02:36.1]} 28... Kc6 {[%clk 0:04:10.2]} 29.
a4 {[%clk 0:02:34.1]} 29... Bb3 {[%clk 0:04:07.6]} 30. Rd8 {[%clk 0:02:32.5]}
30... Re1+ {[%clk 0:04:01.4]} 31. Kh2 {[%clk 0:02:30.6]} 31... f4 {[%clk
0:04:00.1]} 32. axb5+ {[%clk 0:02:24.9]} 32... axb5 {[%clk 0:04:00]} 0-1

[Event "Live Chess"]
[Site "Chess.com"]
[Date "2024.06.02"]
[Round "-"]
[White "Grace6363"]
[Black "GoldsmanB"]
[Result "0-1"]
[WhiteElo "1144"]
[BlackElo "1110"]
[TimeControl "300"]
[EndTime "7:05:09 PDT"]
[Termination "GoldsmanB won by resignation"]

1. d4 {[%clk 0:04:57.4]} 1... Nf6 {[%clk 0:04:58.6]} 2. c4 {[%clk 0:04:56.7]}
2... e6 {[%clk 0:04:57.6]} 3. Nf3 {[%clk 0:04:55.4]} 3... Bb4+ {[%clk
0:04:50.4]} 4. Nbd2 {[%clk 0:04:52.9]} 4... O-O {[%clk 0:04:48.9]} 5. a3 {[%clk
0:04:52.3]} 5... Be7 {[%clk 0:04:46.4]} 6. e4 {[%clk 0:04:51.3]} 6... d5 {[%clk
0:04:44.7]} 7. e5 {[%clk 0:04:50.2]} 7... Ng4 {[%clk 0:04:39.2]} 8. Be2 {[%clk
0:04:48.4]} 8... Nc6 {[%clk 0:04:36.9]} 9. O-O {[%clk 0:04:46]} 9... dxc4 {[%clk
0:04:34.6]} 10. Bxc4 {[%clk 0:04:44.7]} 10... b6 {[%clk 0:04:29]} 11. h3 {[%clk
0:04:43.3]} 11... Nh6 {[%clk 0:04:26.8]} 12. Ne4 {[%clk 0:04:40.9]} 12... Nf5
{[%clk 0:04:23.5]} 13. Nfg5 {[%clk 0:04:37.5]} 13... Bxg5 {[%clk 0:04:20.6]} 14.
Nxg5 {[%clk 0:04:36.3]} 14... Qxd4 {[%clk 0:04:15.4]} 15. Qh5 {[%clk 0:04:31.9]}
15... h6 {[%clk 0:04:05.7]} 16. Bxe6 {[%clk 0:04:15]} 16... Bxe6 {[%clk
0:03:58.9]} 17. Nxe6 {[%clk 0:04:11.9]} 17... fxe6 {[%clk 0:03:57]} 18. Bf4
{[%clk 0:04:02.5]} 18... Qxf4 {[%clk 0:03:51.2]} 0-1

[Event "Live Chess"]
[Site "Chess.com"]
[Date "2024.06.02"]
[Round "-"]
[White "jimwad"]
[Black "Step-S"]
[Result "1-0"]
[WhiteElo "1330"]
[BlackElo "1284"]
[TimeControl "300"]
[EndTime "7:05:11 PDT"]
[Termination "jimwad won on time"]

1. d4 {[%clk 0:04:58.9]} 1... e5 {[%clk 0:04:57.7]} 2. dxe5 {[%clk 0:04:57.8]}
2... d6 {[%clk 0:04:57.2]} 3. exd6 {[%clk 0:04:56.5]} 3... Bxd6 {[%clk
0:04:57.1]} 4. Nc3 {[%clk 0:04:55.2]} 4... Nc6 {[%clk 0:04:55]} 5. Nf3 {[%clk
0:04:53.7]} 5... Nf6 {[%clk 0:04:53.5]} 6. Bg5 {[%clk 0:04:51.7]} 6... h6 {[%clk
0:04:42.9]} 7. Bh4 {[%clk 0:04:50]} 7... Be6 {[%clk 0:04:27.3]} 8. e3 {[%clk
0:04:47.2]} 8... Qe7 {[%clk 0:04:20.3]} 9. Bb5 {[%clk 0:04:43.3]} 9... O-O
{[%clk 0:04:02.7]} 10. Bxc6 {[%clk 0:04:40.7]} 10... bxc6 {[%clk 0:04:01.5]} 11.
O-O {[%clk 0:04:38.7]} 11... Rad8 {[%clk 0:03:59.7]} 12. Qe2 {[%clk 0:04:30.1]}
12... Bg4 {[%clk 0:03:43.1]} 13. h3 {[%clk 0:04:26.9]} 13... Bh5 {[%clk
0:03:40.5]} 14. Ne4 {[%clk 0:04:19]} 14... Nxe4 {[%clk 0:03:36.2]} 15. Bxe7
{[%clk 0:04:16.6]} 15... Bxe7 {[%clk 0:03:31.5]} 16. g4 {[%clk 0:03:58.6]} 16...
Bg6 {[%clk 0:03:21.8]} 17. Ne5 {[%clk 0:03:57.2]} 17... Rd2 {[%clk 0:03:04.6]}
18. Qc4 {[%clk 0:03:54.3]} 18... Nd6 {[%clk 0:02:47.7]} 19. Qc3 {[%clk
0:03:44.4]} 19... Rxc2 {[%clk 0:02:40.4]} 20. Qb3 {[%clk 0:03:35.2]} 20... Bh7
{[%clk 0:02:18.7]} 21. f4 {[%clk 0:03:23.6]} 21... Be4 {[%clk 0:02:09.7]} 22.
Rf2 {[%clk 0:03:13.6]} 22... Rxf2 {[%clk 0:01:49.2]} 23. Kxf2 {[%clk 0:03:12]}
23... Bh4+ {[%clk 0:01:48.7]} 24. Kf1 {[%clk 0:03:02.6]} 24... c5 {[%clk
0:01:07.8]} 25. Nd7 {[%clk 0:02:50]} 25... Re8 {[%clk 0:01:01]} 26. Nxc5 {[%clk
0:02:48.2]} 26... Bc6 {[%clk 0:00:52.1]} 27. Rc1 {[%clk 0:02:18.4]} 27... Bb5+
{[%clk 0:00:50.3]} 28. Kg2 {[%clk 0:02:15.5]} 28... a6 {[%clk 0:00:42]} 29. a4
{[%clk 0:02:06.2]} 29... Bc6+ {[%clk 0:00:39.7]} 30. Kh2 {[%clk 0:02:03.3]}
30... Nc8 {[%clk 0:00:19.7]} 31. Nxa6 {[%clk 0:02:01.7]} 31... Bd7 {[%clk
0:00:12.9]} 32. Nxc7 {[%clk 0:01:57.9]} 32... Re7 {[%clk 0:00:10.3]} 33. Nd5
{[%clk 0:01:56.3]} 33... Re6 {[%clk 0:00:08]} 34. Qb7 {[%clk 0:01:38.9]} 34...
Rxe3 {[%clk 0:00:05.2]} 35. Rxc8+ {[%clk 0:01:36.4]} 35... Kh7 {[%clk
0:00:03.8]} 36. Qxd7 {[%clk 0:01:28.6]} 36... Re2+ {[%clk 0:00:02.5]} 37. Kh1
{[%clk 0:01:26.6]} 37... Re1+ {[%clk 0:00:00.2]} 38. Kg2 {[%clk 0:01:25.2]} 1-0

[Event "Live Chess"]
[Site "Chess.com"]
[Date "2024.06.02"]
[Round "-"]
[White "r0ad_t0-gm"]
[Black "halfberg"]
[Result "0-1"]
[WhiteElo "2281"]
[BlackElo "1889"]
[TimeControl "300"]
[EndTime "7:05:25 PDT"]
[Termination "halfberg won by checkmate"]

1. Nf3 {[%clk 0:04:59]} 1... c5 {[%clk 0:04:57.7]} 2. g3 {[%clk 0:04:58.5]} 2...
Nc6 {[%clk 0:04:56.6]} 3. Bg2 {[%clk 0:04:58.1]} 3... g6 {[%clk 0:04:54.5]} 4.
c4 {[%clk 0:04:56.8]} 4... Bg7 {[%clk 0:04:53.2]} 5. Nc3 {[%clk 0:04:56.4]} 5...
e6 {[%clk 0:04:51.9]} 6. d4 {[%clk 0:04:54.8]} 6... cxd4 {[%clk 0:04:47.2]} 7.
Nb5 {[%clk 0:04:53.5]} 7... d6 {[%clk 0:04:37.6]} 8. Bf4 {[%clk 0:04:42.5]} 8...
e5 {[%clk 0:04:34.5]} 9. Bg5 {[%clk 0:04:41.8]} 9... f6 {[%clk 0:04:30]} 10. Bc1
{[%clk 0:04:39.6]} 10... Nge7 {[%clk 0:04:28.3]} 11. O-O {[%clk 0:04:38.1]}
11... O-O {[%clk 0:04:26.2]} 12. e3 {[%clk 0:04:37.5]} 12... a6 {[%clk
0:04:23.8]} 13. Na3 {[%clk 0:04:33]} 13... Bg4 {[%clk 0:04:19.1]} 14. Nc2 {[%clk
0:04:28.1]} 14... dxe3 {[%clk 0:03:53.9]} 15. Bxe3 {[%clk 0:04:28]} 15... d5
{[%clk 0:03:45.3]} 16. cxd5 {[%clk 0:04:23.6]} 16... Qxd5 {[%clk 0:03:43.6]} 17.
h3 {[%clk 0:04:12.4]} 17... Qxd1 {[%clk 0:03:39]} 18. Rfxd1 {[%clk 0:04:10.9]}
18... Be6 {[%clk 0:03:36.1]} 19. Bc5 {[%clk 0:04:06.1]} 19... Rfd8 {[%clk
0:03:28.7]} 20. Ne3 {[%clk 0:03:57.4]} 20... Nf5 {[%clk 0:03:14.4]} 21. Ng4
{[%clk 0:03:48.5]} 21... h5 {[%clk 0:03:09.2]} 22. Ngh2 {[%clk 0:03:42.5]} 22...
Nfd4 {[%clk 0:03:00.3]} 23. Nd2 {[%clk 0:03:31.9]} 23... Bd5 {[%clk 0:02:40.6]}
24. Bb6 {[%clk 0:03:26.7]} 24... Rd7 {[%clk 0:02:36.4]} 25. Ne4 {[%clk
0:03:15.5]} 25... Bxe4 {[%clk 0:02:21.6]} 26. Bxe4 {[%clk 0:03:15.4]} 26... f5
{[%clk 0:02:20.4]} 27. Bg2 {[%clk 0:02:57.4]} 27... e4 {[%clk 0:02:12.7]} 28. g4
{[%clk 0:02:48.4]} 28... Re8 {[%clk 0:01:51.1]} 29. Kf1 {[%clk 0:02:36.9]} 29...
Nb4 {[%clk 0:01:33.7]} 30. a3 {[%clk 0:01:50.4]} 30... Nbc2 {[%clk 0:01:32.4]}
31. Rac1 {[%clk 0:01:42.8]} 31... e3 {[%clk 0:01:28.2]} 32. Rxc2 {[%clk
0:01:35.4]} 32... Nxc2 {[%clk 0:01:25.6]} 33. Rxd7 {[%clk 0:01:12.9]} 33... e2+
{[%clk 0:01:23.9]} 34. Kg1 {[%clk 0:01:12.6]} 34... e1=Q+ {[%clk 0:01:22.2]} 35.
Nf1 {[%clk 0:01:12.3]} 35... Re2 {[%clk 0:01:04.7]} 36. Bf3 {[%clk 0:01:02.4]}
36... Re8 {[%clk 0:00:49.5]} 37. Bxb7 {[%clk 0:00:58.5]} 37... hxg4 {[%clk
0:00:46.5]} 38. hxg4 {[%clk 0:00:57.3]} 38... fxg4 {[%clk 0:00:45.5]} 39. Bxa6
{[%clk 0:00:54.1]} 39... Qe6 {[%clk 0:00:35.6]} 40. Rb7 {[%clk 0:00:42.9]} 40...
Ne1 {[%clk 0:00:31.3]} 41. Be3 {[%clk 0:00:36.9]} 41... Nf3+ {[%clk 0:00:29.1]}
42. Kg2 {[%clk 0:00:36]} 42... Qxa6 {[%clk 0:00:21.7]} 43. Rb6 {[%clk
0:00:35.2]} 43... Qa8 {[%clk 0:00:19.6]} 44. Ng3 {[%clk 0:00:21]} 44... Ne1+
{[%clk 0:00:17.8]} 45. Kf1 {[%clk 0:00:20.1]} 45... Nd3 {[%clk 0:00:15.7]} 46.
Rxg6 {[%clk 0:00:17.7]} 46... Rxe3 {[%clk 0:00:13.7]} 47. fxe3 {[%clk
0:00:17.2]} 47... Qf3+ {[%clk 0:00:11.8]} 48. Kg1 {[%clk 0:00:16.9]} 48... Qxg3+
{[%clk 0:00:09.5]} 49. Kh1 {[%clk 0:00:16.5]} 49... Nf2# {[%clk 0:00:07.9]} 0-1

[Event "Live Chess"]
[Site "Chess.com"]
[Date "2024.06.02"]
[Round "-"]
[White "Dashman93"]
[Black "davigator"]
[Result "0-1"]
[WhiteElo "2144"]
[BlackElo "2354"]
[TimeControl "300"]
[EndTime "7:05:37 PDT"]
[Termination "davigator won by resignation"]

1. d4 {[%clk 0:04:53.8]} 1... Nf6 {[%clk 0:04:58.4]} 2. Nf3 {[%clk 0:04:53]}
2... e6 {[%clk 0:04:54.2]} 3. g3 {[%clk 0:04:49.8]} 3... b5 {[%clk 0:04:52.2]}
4. Bg2 {[%clk 0:04:48.6]} 4... Bb7 {[%clk 0:04:50.8]} 5. O-O {[%clk 0:04:47]}
5... c5 {[%clk 0:04:49.9]} 6. a4 {[%clk 0:04:41.3]} 6... b4 {[%clk 0:04:47.2]}
7. b3 {[%clk 0:04:32.5]} 7... d5 {[%clk 0:04:45.9]} 8. dxc5 {[%clk 0:04:30.6]}
8... Bxc5 {[%clk 0:04:44.1]} 9. Bb2 {[%clk 0:04:30.3]} 9... Nbd7 {[%clk
0:04:41.4]} 10. a5 {[%clk 0:04:29.1]} 10... Ba6 {[%clk 0:04:37.5]} 11. Re1
{[%clk 0:04:25.3]} 11... O-O {[%clk 0:04:36.6]} 12. Nbd2 {[%clk 0:04:24.1]}
12... Rc8 {[%clk 0:04:34.3]} 13. e4 {[%clk 0:04:22.5]} 13... Qc7 {[%clk
0:04:26.1]} 14. exd5 {[%clk 0:04:16.3]} 14... exd5 {[%clk 0:04:24.3]} 15. Ne5
{[%clk 0:04:01.1]} 15... Bd6 {[%clk 0:04:22.2]} 16. Nxd7 {[%clk 0:03:56]} 16...
Nxd7 {[%clk 0:04:20.5]} 17. Qg4 {[%clk 0:03:49.1]} 17... Be5 {[%clk 0:04:11.3]}
18. Bxe5 {[%clk 0:03:20.9]} 18... Nxe5 {[%clk 0:04:10]} 19. Qd4 {[%clk
0:03:20.3]} 19... Ng6 {[%clk 0:04:01.4]} 20. Rac1 {[%clk 0:03:15.8]} 20... Rfd8
{[%clk 0:03:58.2]} 21. Qxb4 {[%clk 0:03:12.6]} 21... d4 {[%clk 0:03:54.4]} 22.
Nc4 {[%clk 0:03:01]} 22... Bxc4 {[%clk 0:03:50.8]} 23. bxc4 {[%clk 0:03:00.3]}
23... Qxc4 {[%clk 0:03:49.6]} 24. Qb7 {[%clk 0:02:56.6]} 24... Qc7 {[%clk
0:03:46.3]} 25. Qa6 {[%clk 0:02:49]} 25... Rb8 {[%clk 0:03:43.8]} 26. Red1
{[%clk 0:02:36.9]} 26... Qc5 {[%clk 0:03:37.9]} 27. Rd2 {[%clk 0:02:09.9]} 27...
Ne5 {[%clk 0:03:29.7]} 28. Rcd1 {[%clk 0:01:35]} 28... Nc4 {[%clk 0:03:28.2]}
29. Re2 {[%clk 0:01:30.8]} 29... Nxa5 {[%clk 0:03:25.4]} 30. Qd3 {[%clk
0:01:27.9]} 30... Nc4 {[%clk 0:03:21.3]} 31. c3 {[%clk 0:01:26.7]} 31... Nb2
{[%clk 0:03:05.6]} 32. cxd4 {[%clk 0:01:20.1]} 32... Qd6 {[%clk 0:02:58]} 33.
Rxb2 {[%clk 0:01:14.9]} 33... Rxb2 {[%clk 0:02:55.9]} 34. d5 {[%clk 0:01:14]}
34... a5 {[%clk 0:02:50.5]} 35. Rc1 {[%clk 0:01:10.6]} 35... Rb6 {[%clk
0:02:47.9]} 36. Qc3 {[%clk 0:01:07.9]} 36... a4 {[%clk 0:02:44.8]} 37. Ra1
{[%clk 0:01:05.8]} 37... Ra6 {[%clk 0:02:43.4]} 38. Qc4 {[%clk 0:01:04.6]} 38...
a3 {[%clk 0:02:41.6]} 39. h4 {[%clk 0:01:03.8]} 39... g6 {[%clk 0:02:39.6]} 40.
h5 {[%clk 0:01:02.3]} 40... gxh5 {[%clk 0:02:37.5]} 41. Ra2 {[%clk 0:00:59.1]}
41... h6 {[%clk 0:02:34]} 42. Qe2 {[%clk 0:00:57]} 42... Qg6 {[%clk 0:02:30.2]}
43. Be4 {[%clk 0:00:55.6]} 43... Qf6 {[%clk 0:02:22.1]} 44. Qxh5 {[%clk
0:00:54.4]} 44... Re8 {[%clk 0:02:20.6]} 45. Qg4+ {[%clk 0:00:50.1]} 45... Kf8
{[%clk 0:02:18.3]} 46. Rd2 {[%clk 0:00:38.5]} 46... a2 {[%clk 0:02:13.1]} 0-1

[Event "Live Chess"]
[Site "Chess.com"]
[Date "2024.06.02"]
[Round "-"]
[White "ACM42"]
[Black "GrahamCuthbert"]
[Result "1-0"]
[WhiteElo "2188"]
[BlackElo "1037"]
[TimeControl "300"]
[EndTime "7:05:46 PDT"]
[Termination "ACM42 won by resignation"]

1. e4 {[%clk 0:04:59]} 1... c6 {[%clk 0:04:58.8]} 2. d4 {[%clk 0:04:57.8]} 2...
d5 {[%clk 0:04:58]} 3. e5 {[%clk 0:04:57.3]} 3... c5 {[%clk 0:04:55.2]} 4. c3
{[%clk 0:04:56.1]} 4... Nc6 {[%clk 0:04:49.2]} 5. Nf3 {[%clk 0:04:55.1]} 5...
Bg4 {[%clk 0:04:47.8]} 6. Bb5 {[%clk 0:04:54]} 6... e6 {[%clk 0:04:42.3]} 7. O-O
{[%clk 0:04:51.8]} 7... Bxf3 {[%clk 0:04:41.1]} 8. Qxf3 {[%clk 0:04:50.3]} 8...
a6 {[%clk 0:04:34.4]} 9. Bxc6+ {[%clk 0:04:48]} 9... bxc6 {[%clk 0:04:32.5]} 10.
Be3 {[%clk 0:04:47.3]} 10... Ne7 {[%clk 0:04:28]} 11. g4 {[%clk 0:04:44.4]}
11... Ng6 {[%clk 0:04:23.8]} 12. Nd2 {[%clk 0:04:40.7]} 12... cxd4 {[%clk
0:04:17.3]} 13. cxd4 {[%clk 0:04:39]} 13... Qb6 {[%clk 0:04:10.7]} 14. Nb3
{[%clk 0:04:31.4]} 14... a5 {[%clk 0:03:50]} 15. Qe2 {[%clk 0:04:30.3]} 15... a4
{[%clk 0:03:45.9]} 16. Nc5 {[%clk 0:04:29.5]} 16... Bxc5 {[%clk 0:03:40.3]} 17.
dxc5 {[%clk 0:04:28.4]} 17... Qc7 {[%clk 0:03:34]} 18. f4 {[%clk 0:04:27.3]}
18... O-O {[%clk 0:03:26.6]} 19. Bd4 {[%clk 0:04:26.1]} 19... Rab8 {[%clk
0:03:17.6]} 20. f5 {[%clk 0:04:24.6]} 20... Ne7 {[%clk 0:03:09.2]} 21. h4 {[%clk
0:04:11.8]} 21... h6 {[%clk 0:02:59.7]} 22. h5 {[%clk 0:03:43.3]} 22... exf5
{[%clk 0:02:47.1]} 23. gxf5 {[%clk 0:03:42.2]} 23... Qd7 {[%clk 0:02:29.9]} 24.
f6 {[%clk 0:03:17.6]} 24... Nf5 {[%clk 0:02:18.4]} 25. Qg4 {[%clk 0:03:13.1]}
25... g6 {[%clk 0:01:34.5]} 26. hxg6 {[%clk 0:02:56]} 26... Rb7 {[%clk 0:01:19]}
27. gxf7+ {[%clk 0:02:44.5]} 27... Kxf7 {[%clk 0:01:15.6]} 28. Qh5+ {[%clk
0:02:15.1]} 28... Ke6 {[%clk 0:01:03.6]} 29. Qxf5+ {[%clk 0:02:12.6]} 29... Kf7
{[%clk 0:01:01.7]} 30. Rae1 {[%clk 0:02:03.3]} 30... Qxf5 {[%clk 0:00:54]} 31.
Rxf5 {[%clk 0:02:01.8]} 31... Rg8+ {[%clk 0:00:52.4]} 32. Kh2 {[%clk 0:02:00.5]}
32... Rxb2+ {[%clk 0:00:51]} 33. Bxb2 {[%clk 0:01:59]} 1-0

[Event "Live Chess"]
[Site "Chess.com"]
[Date "2024.06.02"]
[Round "-"]
[White "nitrofish07"]
[Black "Nazar-Makarchuk"]
[Result "1-0"]
[WhiteElo "2072"]
[BlackElo "1475"]
[TimeControl "300"]
[EndTime "7:05:52 PDT"]
[Termination "nitrofish07 won by resignation"]

1. d4 {[%clk 0:04:58.8]} 1... Nf6 {[%clk 0:04:58.4]} 2. c4 {[%clk 0:04:58.7]}
2... d5 {[%clk 0:04:57.5]} 3. cxd5 {[%clk 0:04:56.8]} 3... Qxd5 {[%clk
0:04:56.4]} 4. Nc3 {[%clk 0:04:55.2]} 4... Qd8 {[%clk 0:04:53.2]} 5. e4 {[%clk
0:04:54.5]} 5... e6 {[%clk 0:04:51.3]} 6. Nf3 {[%clk 0:04:52.2]} 6... Bb4 {[%clk
0:04:50.7]} 7. Qa4+ {[%clk 0:04:45.9]} 7... Nc6 {[%clk 0:04:48.7]} 8. Bb5 {[%clk
0:04:45.3]} 8... Bxc3+ {[%clk 0:04:47.8]} 9. bxc3 {[%clk 0:04:42.8]} 9... Bd7
{[%clk 0:04:46.8]} 10. Qc2 {[%clk 0:04:21]} 10... O-O {[%clk 0:04:42.2]} 11. h4
{[%clk 0:04:19.6]} 11... a6 {[%clk 0:04:39.7]} 12. Bd3 {[%clk 0:04:18]} 12...
Na7 {[%clk 0:04:33.2]} 13. e5 {[%clk 0:04:17.4]} 13... Nd5 {[%clk 0:04:27.1]}
14. Bxh7+ {[%clk 0:04:15.7]} 14... Kh8 {[%clk 0:04:26.5]} 15. h5 {[%clk
0:04:15.3]} 15... f5 {[%clk 0:04:22.1]} 16. exf6 {[%clk 0:04:10.2]} 16... Nxf6
{[%clk 0:04:21.4]} 17. Bg6 {[%clk 0:04:08.9]} 17... Be8 {[%clk 0:04:15.4]} 18.
Ng5 {[%clk 0:04:04.8]} 18... Bxg6 {[%clk 0:04:11.7]} 19. hxg6+ {[%clk
0:04:04.7]} 19... Kg8 {[%clk 0:04:05.6]} 20. Qd3 {[%clk 0:04:02.1]} 20... Nd5
{[%clk 0:04:03.2]} 21. Qh3 {[%clk 0:04:00.3]} 1-0